fUSD/lending_fUSD_20240520
["ID","MTS","AMOUNT","RATE_DAILY","PERIOD"]
[327566328,1716235838618,-2000.27992103,0.00012997,2]
[327566330,1716235838635,-204.21487762,0.00012997,2]
[327566332,1716235838646,-405.66272288,0.00012998,2]
[327566334,1716235838655,-457.74988423,0.00013,2]
[327566336,1716235838665,-151.0,0.00013017,2]
[327566338,1716235838675,-195.0,0.00013202,2]
[327566340,1716235838684,-156.88,0.00013602,2]
[327566342,1716235838695,-156.88,0.00013956,2]
[327566344,1716235838706,-339.15,0.00013973,2]
[327566346,1716235838716,-685.49,0.00014111,2]
[327566348,1716235838725,-250.0,0.00014264,2]
[327566350,1716235838736,-150.0,0.00014288,2]
[327566352,1716235838745,-156.88,0.00014311,2]
[327566354,1716235838755,-200.0,0.00014485,2]
[327566356,1716235838765,-1500.0,0.00014524,2]
[327566358,1716235838775,-200.0,0.00014563,2]
[327566360,1716235838784,-3752.11,0.00014578,2]
[327566362,1716235838794,-1000.0,0.00014625,2]
[327566364,1716235838804,-250.0,0.00014625,2]
[327566365,1716235838814,-1501.77727144,0.00014632,2]
[327566367,1716235838824,-23900.0,0.00014633,2]
[327566369,1716235838835,-3055.51,0.00014677,2]
[327566371,1716235838846,-10000.0,0.00014683,2]
[327566372,1716235838856,-500.0,0.00014902,2]
[327566373,1716235838866,-2751.0,0.00014907,2]
[327566374,1716235838875,-494.64275301,0.00015,2]
[327566375,1716235838889,-8091.83439501,0.00015,2]
[327566376,1716235838899,-257.65395905,0.00015,2]
[327566377,1716235838908,-155.0,0.00015,2]
[327566378,1716235838918,-200.0,0.00015,2]
[327566379,1716235838928,-618.8768531,0.00015,2]
[327566380,1716235838938,-300.0,0.00015068,2]
[327566381,1716235838948,-382.75,0.00015127,2]
[327566382,1716235838958,-168.21,0.0001524,2]
[327566383,1716235838968,-14.972011,0.00015291,2]
[327566384,1716235838981,-985.027989,0.00015291,2]
[327566385,1716235838991,-17781.9431,0.00015503,2]
[327566386,1716235839001,-11601.9137,0.00015503,2]
[327566387,1716235839011,-200.0,0.00015567,2]
[327566388,1716235839023,-166.39,0.00015703,2]
[327566389,1716235839033,-5816.77494424,0.00015912,2]
[327566390,1716235839043,-167.0,0.00016011,2]
[327566391,1716235839053,-5600.97,0.00016116,2]
[327566392,1716235839063,-49099.53659096,0.000164,2]
[327566393,1716235839073,-300.0,0.00016438,2]
[327566394,1716235839083,-5088.5566,0.000165,2]
[327566395,1716235839093,-2631.2452,0.000165,2]
[327566396,1716235839104,-167.0,0.0001654,2]
[327566397,1716235839114,-1061.0,0.000166,3]
[327566398,1716235839124,-8222.0,0.000166,3]
[327566399,1716235839141,-178.92,0.00016712,2]
[327566400,1716235839151,-167.0,0.00017068,2]
[327566401,1716235839160,-168.21,0.00017145,2]
[327566402,1716235839171,-1000.0,0.00017202,2]
[327566403,1716235839181,-382.75,0.00017391,2]
[327566404,1716235839192,-3055.51,0.00017417,2]
[327566405,1716235839203,-167.0,0.00017597,2]
[327566406,1716235839212,-158.43327398,0.00018,2]
[327566407,1716235839221,-1000.0,0.00018,2]
[327566408,1716235839231,-150.0,0.00018065,3]
[327566409,1716235839241,-150.0,0.00018065,2]
[327566410,1716235839251,-167.0,0.00018125,2]
[327566411,1716235839261,-5816.77494421,0.0001856,2]
[327566412,1716235839270,-167.0,0.00018654,2]
[327566413,1716235839280,-49099.53659089,0.00018993,2]
[327566414,1716235839290,-1233.0,0.00019,2]
[327566415,1716235839300,-1000.0,0.00019,2]
[327566416,1716235839309,-1000.0,0.00019,2]
[327566417,1716235839319,-1000.0,0.00019,2]
[327566418,1716235839329,-1000.0,0.00019,2]
[327566419,1716235839340,-168.21,0.0001905,2]
[327566420,1716235839351,-1000.0,0.00019114,2]
[327566421,1716235839361,-800.0,0.00019151,2]
[327566422,1716235839372,-17651.0436,0.00019398,2]
[327566423,1716235839388,-546.4202,0.00019488,2]
[327566424,1716235839398,-271.9617,0.00019488,2]
[327566425,1716235839408,-155.84106242,0.00019498,2]
[327566426,1716235839417,-12328.64738618,0.00019498,2]
[327566428,1716235839554,-2306.7,0.00019498,2]
[327566429,1716235839574,-285.04879978,0.00019498,2]
[327566430,1716235839586,-483.74999813,0.00019498,2]
[327566433,1716235839599,-958.77051354,0.00019498,2]
[327566435,1716235839613,-17079.22428537,0.00019498,2]
[327566437,1716235839624,-19418.92948426,0.00019498,2]
[327566441,1716235839663,-572.78982099,0.00019498,2]
[327566444,1716235839675,-907.2793323,0.00019498,2]
[327566472,1716235840016,-89359.57652905,0.00019498,2]
[327566473,1716235840028,-101299.2838504,0.00019498,2]
[327566474,1716235840039,-472.25625666,0.000195,2]
[327566475,1716235840049,-173.13322766,0.000195,2]
[327566476,1716235840060,-176.31443574,0.000195,2]
[327566477,1716235840070,-196.89576948,0.000195,2]
[327566478,1716235840080,-7265.6019958,0.0001957,2]
[327566479,1716235840090,-165.53963886,0.00019588,2]
[327566480,1716235840101,-155.18049844,0.00019588,2]
[327566481,1716235840111,-782.14748573,0.00019588,2]
[327566482,1716235840121,-155.08919033,0.00019588,2]
[327566483,1716235840133,-155.76867218,0.00019588,2]
[327566484,1716235840143,-598.4676915,0.00019588,2]
[327566485,1716235840365,-586.02670326,0.00019588,2]
[327566486,1716235840378,-502.61297714,0.00019588,2]
[327566487,1716235840392,-573.81026861,0.00019588,2]
[327566488,1716235840402,-1945.54107094,0.00019588,2]
[327566489,1716235840412,-1213.37270844,0.00019588,2]
[327566490,1716235840421,-347.93910065,0.00019588,2]
[327566491,1716235840430,-155.25632263,0.00019588,2]
[327566492,1716235840440,-162.75211843,0.00019588,2]
[327566493,1716235840450,-572.78982099,0.00019589,7]
[327566494,1716235840459,-166.00360702,0.00019589,2]
[327566495,1716235840468,-155.0,0.00019589,2]
[327566496,1716235840477,-156.27424885,0.00019589,2]
[327566497,1716235840487,-155.15682615,0.00019589,2]
[327566498,1716235840498,-155.32597245,0.00019589,2]
[327566499,1716235840508,-237.10219524,0.00019589,2]
[327566500,1716235840518,-155.0,0.00019589,2]
[327566501,1716235840528,-3269.89847617,0.00019597,2]
[327566502,1716235840538,-491.92329575,0.00019597,2]
[327566503,1716235840548,-500.0,0.00019597,2]
[327566504,1716235840558,-500.0,0.00019597,2]
[327566505,1716235840567,-500.0,0.00019597,2]
[327566506,1716235840577,-500.0,0.00019597,2]
[327566507,1716235840587,-500.0,0.00019597,2]
[327566508,1716235840599,-500.0,0.00019597,2]
[327566509,1716235840612,-500.0,0.00019597,2]
[327566510,1716235840621,-500.0,0.00019597,2]
[327566511,1716235840638,-500.0,0.00019597,2]
[327566512,1716235840649,-500.0,0.00019597,2]
[327566513,1716235840658,-500.0,0.00019597,2]
[327566514,1716235840667,-500.0,0.00019597,2]
[327566515,1716235840677,-500.0,0.00019597,2]
[327566516,1716235840687,-500.0,0.00019597,2]
[327566517,1716235840697,-500.0,0.00019597,2]
[327566518,1716235840707,-500.0,0.00019597,2]
[327566519,1716235840716,-500.0,0.00019597,2]
[327566520,1716235840725,-500.0,0.00019597,2]
[327566521,1716235840735,-500.0,0.00019597,2]
[327566522,1716235840744,-500.0,0.00019597,2]
[327566523,1716235840754,-183.51022425,0.00019597,2]
[327566524,1716235840763,-500.0,0.00019597,2]
[327566525,1716235840773,-500.0,0.00019597,2]
[327566526,1716235840783,-500.0,0.00019597,2]
[327566527,1716235840792,-500.0,0.00019597,2]
[327566528,1716235840802,-500.0,0.00019597,2]
[327566529,1716235840811,-500.0,0.00019597,2]
[327566530,1716235840820,-500.0,0.00019597,2]
[327566531,1716235840829,-500.0,0.00019597,2]
[327566532,1716235840839,-500.0,0.00019597,2]
[327566533,1716235840848,-500.0,0.00019597,2]
[327566534,1716235840858,-500.0,0.00019597,2]
[327566535,1716235840868,-22223.79382799,0.00019598,2]
[327566536,1716235840940,-102400.98854264,0.00019598,2]
[327566537,1716235840952,-826.62605178,0.00019598,2]
[327566538,1716235841063,7986.80725919,0.00010911,2]
[327566539,1716235841989,-3074.43042707,0.00019598,2]
[327566540,1716235842000,-581.8815262,0.00019598,2]
[327566541,1716235842012,-5196.0,0.00019598,2]
[327566542,1716235842024,-6807.5000025,0.00019598,2]
[327566543,1716235842247,-518.26501955,0.00019598,2]
[327566544,1716235842259,-824.70425037,0.00019598,2]
[327566545,1716235842303,-21101.5188,0.00019598,2]
[327566571,1716235843028,-2805.91695,0.00019598,2]
[327566572,1716235843039,-3453.5209932,0.00019598,2]
[327566573,1716235843051,-1501.2,0.00019598,2]
[327566574,1716235843119,-3621.99274646,0.00019598,2]
[327566575,1716235843128,-66567.18164879,0.00019598,2]
[327566581,1716235843274,-55571.14781077,0.00019598,2]
[327566582,1716235843285,-667.37529874,0.00019598,2]
[327566583,1716235843296,-372.86000006,0.00019598,2]
[327566584,1716235843311,-3179.5383,0.00019598,2]
[327566585,1716235843442,-7229.73659253,0.00019598,2]
[327566586,1716235843454,-2979.44011433,0.00019598,2]
[327566587,1716235843465,-16109.62804444,0.00019598,2]
[327566588,1716235843477,-39595.59109045,0.00019598,2]
[327566589,1716235843489,-6300.33974409,0.00019598,2]
[327566590,1716235843500,-2578.28157109,0.00019598,2]
[327566591,1716235843512,-237278.88518748,0.00019598,2]
[327566592,1716235843522,-19615.65373925,0.000196,2]
[327566593,1716235843531,-150.0,0.00019605,2]
[327566594,1716235843541,-382.75,0.00019655,2]
[327566595,1716235843551,-23427.68696285,0.00019724,5]
[327566596,1716235843560,-263.02958027,0.00019724,2]
[327566597,1716235843570,-2813.5563,0.00019724,2]
[327566598,1716235843579,-3961.82198228,0.00019724,2]
[327566599,1716235843589,-10524.20460299,0.00019725,2]
[327566600,1716235843601,-155.13792102,0.00019998,2]
[327566601,1716235843613,-155.0,0.0002,4]
[327566604,1716235843623,-1773.05966905,0.0002,2]
[327566607,1716235843636,-862.07894367,0.0002,2]
[327566608,1716235843647,-627.77142105,0.0002,2]
[327566611,1716235843657,-155.0,0.0002,2]
[327566614,1716235843666,-6238.00785367,0.0002,2]
[327566617,1716235843676,-5184.68610729,0.0002,2]
[327566622,1716235843687,-155.0,0.0002,2]
[327566625,1716235843698,-1262.82225324,0.0002,2]
[327566628,1716235843710,-155.0,0.0002,2]
[327566630,1716235843719,-155.0,0.0002,2]
[327566632,1716235843730,-546.89106013,0.0002,2]
[327566633,1716235843739,-176.99030041,0.0002,2]
[327566635,1716235843749,-1000.0,0.0002,2]
[327566637,1716235843759,-2968.66097405,0.0002009,2]
[327566639,1716235843769,-4417.99,0.00020145,2]
[327566640,1716235843779,-3055.51,0.00020157,2]
[327566641,1716235843790,-339.15,0.00020447,2]
[327566642,1716235843801,-170.72,0.00020548,2]
[327566643,1716235843811,-168.21,0.00020955,2]
[327566644,1716235843821,-717.73732659,0.00021,2]
[327566645,1716235843831,-4903.114596,0.00021,2]
[327566646,1716235843841,-1000.0,0.00021,3]
[327566647,1716235843851,-1750.0,0.00021,2]
[327566648,1716235843861,-804.18671143,0.00021006,2]
[327566649,1716235843872,-167.31761538,0.00021008,2]
[327566650,1716235843881,-160.03602867,0.00021025,2]
[327566651,1716235843894,-1000.0,0.00021025,2]
[327566652,1716235843903,-804.18671143,0.00021028,2]
[327566653,1716235843912,-152.08538165,0.00021046,2]
[327566654,1716235843922,-152.84540225,0.00021071,2]
[327566655,1716235843931,-246.29432791,0.00021081,2]
[327566656,1716235843940,-150.0,0.00021144,3]
[327566657,1716235843949,-158.09252708,0.0002118,2]
[327566658,1716235843958,-154.00992484,0.0002118,2]
[327566659,1716235843967,-153.72660856,0.00021202,2]
[327566660,1716235843977,-5816.77494421,0.00021207,2]
[327566661,1716235843986,-158.09252708,0.00021233,2]
[327566662,1716235843995,-804.18671143,0.0002124,2]
[327566663,1716235844005,-246.29432791,0.00021245,2]
[327566664,1716235844014,-152.08538165,0.00021301,2]
[327566665,1716235844023,-154.02142538,0.00021341,2]
[327566666,1716235844033,-154.02142538,0.00021355,2]
[327566667,1716235844042,-155.79488318,0.00021366,2]
[327566668,1716235844051,-167.31761538,0.00021378,2]
[327566669,1716235844060,-154.00992484,0.00021392,2]
[327566670,1716235844069,-167.31761538,0.00021481,2]
[327566671,1716235844078,-154.00992484,0.00021579,2]
[327566672,1716235844087,-49099.53659089,0.00021587,2]
[327566673,1716235844096,-154.02142538,0.00021593,2]
[327566674,1716235844105,-246.29432791,0.00021601,2]
[327566675,1716235844115,-246.29432791,0.00021662,2]
[327566676,1716235844125,-153.93988,0.00021676,2]
[327566677,1716235844137,-155.79488318,0.00021677,2]
[327566678,1716235844147,-158.09252708,0.00021715,2]
[327566679,1716235844319,-155.79488318,0.00021724,2]
[327566680,1716235844332,-154.00992484,0.00021741,2]
[327566681,1716235844343,-154.00992484,0.00021796,2]
[327566682,1716235844352,-804.18671143,0.00021804,2]
[327566683,1716235844362,-159.00615245,0.00021861,2]
[327566684,1716235844371,-804.18671143,0.00021866,2]
[327566685,1716235844381,-246.29432791,0.00021887,2]
[327566686,1716235844394,-12993.28073755,0.000219,2]
[327566687,1716235844404,-1000.0,0.000219,2]
[327566688,1716235844413,-579.0,0.000219,5]
[327566689,1716235844422,-1052.3,0.00021918,2]
[327566690,1716235844431,-163.86,0.00021918,2]
[327566691,1716235844440,-343.82,0.00021918,2]
[327566692,1716235844449,-2000.0,0.00021918,2]
[327566693,1716235844458,-200.0,0.00021918,7]
[327566694,1716235844467,-382.75,0.00021919,2]
[327566695,1716235844477,-787.28734739,0.00022,2]
[327566696,1716235844486,-1000.0,0.00022,3]
[327566697,1716235844495,-154.02142538,0.00022004,2]
[327566698,1716235844505,-1338.68588387,0.00022037,2]
[327566699,1716235844514,-151.0,0.00022054,7]
[327566700,1716235844523,-246.29432791,0.00022115,2]
[327566701,1716235844533,-155.79488318,0.00022148,2]
[327566702,1716235844542,-155.8410624,0.00022199,2]
[327566703,1716235844552,-166.29644051,0.00022206,2]
[327566704,1716235844561,-160.50893316,0.00022227,2]
[327566705,1716235844570,-158.09252708,0.00022283,2]
[327566706,1716235844579,-5131.0,0.0002229,2]
[327566707,1716235844588,-1060.0,0.0002229,2]
[327566708,1716235844599,-152.08538165,0.00022299,2]
[327566709,1716235844611,-154.02142538,0.00022311,2]
[327566710,1716235844620,-179.98638903,0.00022356,2]
[327566711,1716235844630,-170.26137791,0.00022374,2]
[327566712,1716235844645,-11183.98704454,0.00022387,2]
[327566713,1716235844654,-162.86481414,0.00022387,2]
[327566714,1716235844663,-153.93988,0.00022387,2]
[327566715,1716235844672,-7378.6454,0.00022387,2]
[327566716,1716235844681,-500.0,0.00022387,2]
[327566717,1716235844692,-841.8204,0.00022387,2]
[327566718,1716235844703,-246.29432791,0.00022407,2]
[327566719,1716235844712,-373.16696721,0.00022433,2]
[327566720,1716235844721,-2863.0,0.00022451,2]
[327566721,1716235844730,-373.16696721,0.00022452,2]
[327566722,1716235844740,-152.08538165,0.00022477,2]
[327566723,1716235844750,-158.32013297,0.00022482,2]
[327566724,1716235844759,-150.0,0.00022487,2]
[327566725,1716235844768,-247.73,0.00022487,2]
[327566726,1716235844777,-237.785,0.00022487,2]
[327566727,1716235844787,-150.092,0.00022487,2]
[327566728,1716235844795,-198.632,0.00022487,2]
[327566729,1716235844805,-2160.0,0.00022487,2]
[327566730,1716235844815,-974.0,0.00022487,2]
[327566731,1716235844824,-1400.0,0.00022487,2]
[327566732,1716235844833,-557.328,0.00022487,2]
[327566733,1716235844842,-1642.0,0.00022487,2]
[327566734,1716235844852,-1225.0,0.00022487,2]
[327566735,1716235844861,-1171.0,0.00022487,2]
[327566736,1716235844871,-422.705,0.00022487,2]
[327566737,1716235844881,-614.384,0.00022487,2]
[327566738,1716235844893,-439.0,0.00022487,2]
[327566739,1716235844903,-809.0,0.00022487,2]
[327566740,1716235844912,-1384.481,0.00022487,2]
[327566741,1716235844921,-490.572,0.00022487,2]
[327566742,1716235844931,-150.476,0.00022487,2]
[327566743,1716235844940,-1138.0,0.00022487,2]
[327566744,1716235844949,-303.552,0.00022487,2]
[327566745,1716235844959,-3160.0,0.00022487,2]
[327566746,1716235844968,-200.0,0.00022487,2]
[327566747,1716235844978,-526.48857399,0.00022487,2]
[327566748,1716235844987,-172666.99420607,0.00022487,2]
[327566749,1716235844996,-246.29432791,0.00022538,2]
[327566750,1716235845006,-373.16696721,0.00022571,2]
[327566751,1716235845015,-157.38762473,0.00022581,2]
[327566752,1716235845026,-155.79488318,0.00022601,2]
[327566753,1716235845036,-246.29432791,0.00022661,2]
[327566754,1716235845046,-150.0,0.00022684,3]
[327566755,1716235845055,-152.08538165,0.00022697,2]
[327566756,1716235845065,-154.02142538,0.00022707,2]
[327566757,1716235845075,-157.38762473,0.0002276,2]
[327566758,1716235845084,-233.20776853,0.00022789,2]
[327566759,1716235845094,-373.16696721,0.000228,2]
[327566760,1716235845103,-168.21,0.0002286,2]
[327566761,1716235845113,-1000.0,0.00022936,2]
[327566762,1716235845123,-246.29432791,0.00022937,2]
[327566763,1716235845135,-5000.0,0.00023,2]
[327566764,1716235845144,-155.0,0.00023,2]
[327566765,1716235845153,-1000.0,0.00023,3]
[327566766,1716235845162,-1800.0,0.00023,2]
[327566767,1716235845171,-1000.0,0.00023,4]
[327566768,1716235845181,-155.79488318,0.00023011,2]
[327566769,1716235845191,-804.18671143,0.00023133,2]
[327566770,1716235845200,-166.66666666,0.00023153,2]
[327566771,1716235845209,-153.30748744,0.00023172,2]
[327566772,1716235845219,-182.96292195,0.00023181,2]
[327566773,1716235845228,-152.84540225,0.00023227,2]
[327566774,1716235845238,-158.84348736,0.00023231,2]
[327566775,1716235845247,-152.84540225,0.00023241,2]
[327566776,1716235845257,-153.72660856,0.00023251,2]
[327566777,1716235845266,-155.79488318,0.00023299,2]
[327566778,1716235845275,-166.83499667,0.00023304,2]
[327566779,1716235845285,-154.02142538,0.00023318,2]
[327566780,1716235845294,-3004.41298574,0.00023411,28]
[327566781,1716235845304,-153.72660856,0.00023434,2]
[327566782,1716235845313,-155.79488318,0.00023453,2]
[327566783,1716235845323,-157.38762473,0.00023474,2]
[327566784,1716235845332,-154.02142538,0.00023522,2]
[327566785,1716235845341,-804.18671143,0.00023535,2]
[327566786,1716235845351,-153.93988,0.00023568,2]
[327566787,1716235845360,-150.0,0.00023569,2]
[327566788,1716235845369,-167.9037705,0.00023619,2]
[327566789,1716235845379,-373.16696721,0.00023658,2]
[327566790,1716235845390,-153.72660856,0.000237,2]
[327566791,1716235845400,-167.31761538,0.00023737,2]
[327566792,1716235845410,-155.79488318,0.00023742,2]
[327566793,1716235845420,-154.02142538,0.0002378,2]
[327566794,1716235845430,-158.32013297,0.00023785,2]
[327566795,1716235845440,-154.02142538,0.00023824,2]
[327566796,1716235845450,-152.08538165,0.00023832,2]
[327566797,1716235845460,-154.02142538,0.00023854,2]
[327566798,1716235845470,-5816.77494421,0.00023855,2]
[327566799,1716235845479,-373.16696721,0.00023879,2]
[327566800,1716235845489,-246.29432791,0.00023917,2]
[327566802,1716235845498,-158.09252708,0.00023919,2]
[327566804,1716235845508,-414.82,0.00023943,2]
[327566806,1716235845518,-2100.0,0.00023943,2]
[327566807,1716235845528,-373.16696721,0.00023944,2]
[327566808,1716235845537,-173.41530599,0.00023953,2]
[327566809,1716235845547,-159.00615245,0.00023969,2]
[327566810,1716235845557,-154.02142538,0.00023989,2]
[327566811,1716235845567,-830.94633425,0.00024,2]
[327566812,1716235845577,-1000.0,0.00024,4]
[327566813,1716235845587,-152.84540225,0.00024027,2]
[327566814,1716235845598,-373.16696721,0.00024036,2]
[327566815,1716235845607,-154.02142538,0.00024092,2]
[327566816,1716235845617,-166.66666667,0.00024155,2]
[327566817,1716235845631,-49099.53659089,0.0002418,2]
[327566818,1716235845643,-382.75,0.00024183,2]
[327566819,1716235845652,-1000.0,0.000242,15]
[327566820,1716235845662,-804.18671143,0.00024205,2]
[327566821,1716235845671,-153.72660856,0.00024216,2]
[327566822,1716235845681,-150.0,0.00024223,5]
[327566823,1716235845692,-180.0,0.0002423,2]
[327566824,1716235845701,-152.08538165,0.00024248,2]
[327566825,1716235845711,-167.31761538,0.00024251,2]
[327566826,1716235845720,-1980.0,0.0002427,15]
[327566827,1716235845730,-176.0,0.0002427,15]
[327566828,1716235845739,-1980.0,0.0002428,15]
[327566829,1716235845749,-176.0,0.0002428,15]
[327566830,1716235845758,-1980.0,0.0002429,15]
[327566831,1716235845768,-176.0,0.0002429,15]
[327566832,1716235845778,-158.84348736,0.00024298,2]
[327566833,1716235845787,-151.0,0.000243,7]
[327566834,1716235845797,-494.0,0.000243,7]
[327566835,1716235845806,-2000.0,0.000243,2]
[327566836,1716235845815,-154.02142538,0.00024305,2]
[327566837,1716235845825,-2000.0,0.0002431,2]
[327566838,1716235845834,-2000.0,0.0002432,2]
[327566839,1716235845843,-2000.0,0.0002433,2]
[327566840,1716235845852,-2000.0,0.0002434,2]
[327566841,1716235845862,-11183.98704453,0.00024343,2]
[327566842,1716235845872,-2000.0,0.0002435,2]
[327566843,1716235845882,-2956.674384,0.0002436,2]
[327566844,1716235845893,-804.18671143,0.00024366,2]
[327566845,1716235845903,-373.16696721,0.00024419,2]
[327566846,1716235845913,-154.00992484,0.00024435,2]
[327566847,1716235845922,-154.02142538,0.00024448,2]
[327566848,1716235845932,-1478.89468622,0.000245,3]
[327566849,1716235845941,-1043.55644757,0.000245,2]
[327566850,1716235845951,-1003.70763234,0.000245,2]
[327566851,1716235845961,-1038.80379723,0.000245,2]
[327566852,1716235845970,-167.31761538,0.00024598,2]
[327566853,1716235845980,-804.18671143,0.00024601,2]
[327566854,1716235845989,-160.50893316,0.00024615,2]
[327566855,1716235846000,-373.16696721,0.00024628,2]
[327566856,1716235846010,-154.02142538,0.00024628,2]
[327566857,1716235846019,-250.0,0.00024658,2]
[327566858,1716235846029,-804.18671143,0.00024677,2]
[327566859,1716235846038,-154.00992484,0.00024685,2]
[327566860,1716235846047,-500.0,0.000247,2]
[327566861,1716235846057,-373.16696721,0.00024717,2]
[327566862,1716235846066,-1565.2946698,0.00024738,2]
[327566863,1716235846075,-155.0,0.0002475,2]
[327566864,1716235846084,-18684.53572182,0.0002475,2]
[327566865,1716235846093,-152.84540225,0.00024755,2]
[327566866,1716235846103,-152.08538165,0.00024768,2]
[327566867,1716235846112,-172.67022,0.00024772,2]
[327566868,1716235846121,-211.401801,0.00024772,2]
[327566869,1716235846131,-196.592741,0.00024772,2]
[327566870,1716235846143,-179.98638904,0.00024798,2]
[327566871,1716235846153,-155.79488318,0.00024801,2]
[327566872,1716235846162,-158.32013297,0.00024893,2]
[327566873,1716235846172,-10000.0,0.000249,2]
[327566874,1716235846182,-2539.85970571,0.000249,10]
[327566875,1716235846194,-169.48925105,0.000249,2]
[327566876,1716235846204,-155.8410624,0.000249,2]
[327566877,1716235846213,-226.28412274,0.000249,4]
[327566878,1716235846223,-282.38301162,0.000249,2]
[327566879,1716235846232,-8135.06521192,0.000249,2]
[327566880,1716235846241,-365.2059587,0.000249,2]
[327566881,1716235846250,-152.84540225,0.00024961,2]
[327566882,1716235846260,-2369.0,0.0002497,15]
[327566883,1716235846269,-150.5,0.0002497,15]
[327566884,1716235846278,-244.0,0.0002497,15]
[327566885,1716235846288,-150.5,0.0002497,15]
[327566887,1716235846297,-2369.0,0.0002498,15]
[327566889,1716235846306,-222.08,0.0002498,15]
[327566891,1716235846315,-150.5,0.0002498,15]
[327566892,1716235846324,-244.0,0.0002498,15]
[327566894,1716235846334,-150.5,0.0002498,15]
[327566896,1716235846343,-3147.0,0.00024986,2]
[327566898,1716235846352,-3278.0,0.00024986,2]
[327566901,1716235846362,-158.1,0.0002499,15]
[327566903,1716235846373,-223.59,0.0002499,15]
[327566905,1716235846385,-2369.0,0.0002499,15]
[327566907,1716235846394,-209.18,0.0002499,15]
[327566909,1716235846403,-244.0,0.0002499,15]
[327566910,1716235846413,-150.5,0.0002499,15]
[327566912,1716235846422,-150.5,0.0002499,15]
[327566913,1716235846431,-17566.72666812,0.0002499,2]
[327566914,1716235846441,-150.5,0.0002499,15]
[327566915,1716235846450,-535.72111165,0.00024997,5]
[327566916,1716235846460,-150.0,0.00024999,10]
[327566917,1716235846469,-150.0,0.00024999,10]
[327566918,1716235846478,-150.0,0.00024999,2]
[327566919,1716235846488,-150.0,0.00024999,2]
[327566920,1716235846497,-150.0,0.00024999,2]
[327566921,1716235846507,-37236.31672329,0.00025,5]
[327566923,1716235846522,-1412302.75050209,0.00025,5]
[327566924,1716235846534,-762718.14431547,0.00025,5]
[327566925,1716235847338,-1500.0,0.0002005,2]
[327566926,1716235847348,-15154.23673131,0.00025,5]
[327566927,1716235847359,-21012.70388937,0.00025,5]
[327566928,1716235847448,-344.91719727,0.00025,5]
[327566929,1716235847460,-2767.36401261,0.00025,5]
[327566930,1716235847472,-959.38294216,0.00025,5]
[327566931,1716235847483,-5927.06374988,0.00025,5]
[327566932,1716235847494,-7256.76705638,0.00025,5]
[327566933,1716235847506,-1288.24683318,0.00025,5]
[327566934,1716235847517,-811.0,0.00025,5]
[327566935,1716235847529,-1117.65997474,0.00025,5]
[327566936,1716235847540,-276.70273799,0.00025,5]
[327566937,1716235847608,-350838.97881934,0.00025,5]
[327566938,1716235847621,-285.5184421,0.00025,5]
[327566939,1716235847639,-316.01403212,0.00025,5]
[327566940,1716235847651,-31995.82299337,0.00025,5]
[327566941,1716235847662,-7331.76027364,0.00025,5]
[327566942,1716235847675,-26767.68199038,0.00025,5]
[327566943,1716235847691,-40766.0167919,0.00025,5]
[327566944,1716235847703,-1413520.07520753,0.00025,5]
[327566945,1716235847713,-1369.24,0.00025,5]
[327566946,1716235847724,-54314.3317306,0.00025,5]
[327566947,1716235847733,-1271.64454444,0.00025,2]
[327566948,1716235847743,-224.21566957,0.00025,2]
[327566949,1716235847753,-3147.98936337,0.00025,2]
[327566950,1716235847763,-1198.64768723,0.00025,2]
[327566951,1716235847772,-155.0,0.00025,2]
[327566952,1716235847781,-151.0,0.00025,7]
[327566953,1716235847790,-155.0,0.00025,2]
[327566954,1716235847800,-155.0,0.00025,2]
[327566955,1716235847810,-578.26198924,0.00025,14]